bitfinex/quotes_ETHUSD_20250415
["timestamp","ask_amount","ask_price","bid_price","bid_amount"]
[1744713369087,6.14283,1628.0,1627.7,1.3688]
[1744713369396,6.14326,1627.8,1627.7,0.56]
[1744713369689,12.28994,1627.4,1627.1,6.74578]
[1744713369836,12.28994,1627.4,1627.1,0.6]
[1744713369837,6.14521,1627.3,1627.1,0.6]
[1744713370036,6.14529,1627.3,1627.1,0.6]
[1744713370234,6.14552,1627.2,1627.1,0.6]
[1744713371051,6.14552,1627.2,1627.1,0.29014095]
[1744713371513,8.76907763,1627.2,1627.1,9.5e-07]
[1744713371688,8.21907763,1627.2,1627.1,0.22012928]
[1744713371895,6.14628,1627.0,1626.9,0.55]
[1744713372107,14.59199063,1627.0,1626.9,0.55]
[1744713372317,18.096814,1627.0,1626.9,0.55]
[1744713372621,18.096814,1627.0,1626.9,1e-05]
[1744713372970,6.94633,1626.8,1626.7,0.005]
[1744713373215,6.99150663,1626.8,1626.7,0.005]
[1744713373400,8.30533929,1626.8,1626.7,0.005]
[1744713373605,6.99150663,1626.8,1626.7,0.005]
[1744713374572,12.52082,1626.9,1626.7,0.005]
[1744713374777,6.14593,1627.1,1626.7,0.005]
[1744713375006,13.10830663,1627.2,1626.8,6.1468]
[1744713375221,6.19113663,1627.1,1626.7,6.15238]
[1744713375494,0.04517663,1627.1,1626.7,0.005]
[1744713375718,6.96233663,1627.2,1626.8,6.14686]
[1744713376022,66.55459,1627.3,1626.9,6.14663]
[1744713376523,6.14607,1627.1,1626.8,0.7702]
[1744713376728,6.14556,1627.2,1626.8,6.91694]
[1744713376928,6.19073663,1627.2,1626.8,6.91694]
[1744713377135,6.19073663,1627.2,1626.8,0.7702]
[1744713377301,6.14607,1627.1,1626.8,6.91723]
[1744713377501,6.14682,1626.9,1626.7,0.005]
[1744713377819,6.95476663,1627.0,1626.7,0.005]
[1744713378029,6.14674,1626.9,1626.7,0.005]
[1744713378327,7.37984066,1627.1,1626.7,6.15228]
[1744713378519,6.14637,1627.0,1626.7,6.15226]
[1744713378721,6.14637,1627.0,1626.7,0.005]
[1744713378922,6.14703,1626.8,1626.7,0.005]
[1744713379325,6.93653,1626.8,1626.7,0.005]
[1744713379536,6.377,1626.9,1626.7,0.005]
[1744713379695,6.377,1626.9,1626.7,6.15216]
[1744713379899,6.377,1626.9,1626.7,12.29945]
[1744713380094,12.52382,1626.9,1626.7,0.005]
[1744713380708,6.377,1626.9,1626.8,6.14703]
[1744713381038,12.52268,1627.2,1626.8,1.305806]
[1744713381240,6.377,1627.2,1626.9,6.1465]
[1744713381402,12.56769663,1627.2,1626.9,6.1465]
[1744713381596,12.52252,1627.2,1626.9,6.1465]
[1744713381905,18.66849,1627.2,1626.8,6.14699]
[1744713382107,12.52266,1627.2,1626.8,6.14699]
[1744713382315,6.14612,1627.1,1626.8,6.14699]
[1744713382509,6.377,1627.2,1627.0,6.14624]
[1744713382716,6.377,1627.2,1627.0,6.14614]
[1744713383146,0.8001,1627.6,1627.3,6.14494]
[1744713383433,6.98929663,1627.6,1627.3,6.14494]
[1744713383810,6.14386,1627.7,1627.4,6.14463]
[1744713384010,6.18903663,1627.7,1627.4,6.14461]
[1744713384336,54.0735,1628.0,1627.5,6.38086701]
[1744713384337,6.14299,1627.9,1627.5,6.38086701]
[1744713384493,6.1434,1627.8,1627.5,6.38086701]
[1744713384698,61.27715,1628.0,1627.6,6.14383]
[1744713384932,0.04517663,1627.9,1627.6,6.14383]
[1744713385095,6.14433,1627.6,1627.0,0.7872]
[1744713385301,0.8255,1627.4,1627.0,0.7872]
[1744713385502,6.14571,1627.2,1626.9,12.27649]
[1744713385801,6.9704,1627.4,1626.9,6.12999]
[1744713386025,6.9704,1627.4,1627.0,12.52898701]
[1744713386221,6.1457,1627.2,1627.0,0.23673701]
[1744713386539,6.1459,1627.1,1627.0,0.23673701]
[1744713387203,12.90598,1627.2,1627.0,0.23673701]
[1744713387430,6.1459,1627.1,1627.0,0.23673701]
[1744713388747,13.13826,1627.2,1627.0,0.23673701]
[1744713388947,6.378,1627.2,1627.0,0.23673701]
[1744713389847,12.56874663,1627.2,1627.0,0.23673701]
[1744713390050,1.3591,1627.1,1627.0,0.23673701]
[1744713390265,6.14703,1626.8,1626.7,0.005]
[1744713390415,12.57020663,1626.8,1626.7,0.24148392]
[1744713390750,12.52503,1626.8,1626.7,0.24148392]
[1744713391530,6.14683,1626.9,1626.7,0.24148392]
[1744713391732,6.378,1626.9,1626.7,6.38871392]
[1744713391933,6.95516,1627.1,1626.7,0.24148392]
[1744713392132,6.352,1627.2,1627.0,6.14605]
[1744713392337,6.14548,1627.3,1627.0,6.14605]
[1744713392665,6.14554,1627.2,1627.1,0.23648392]
[1744713392865,6.14554,1627.2,1626.9,6.04662]
[1744713393072,12.29127,1627.2,1627.0,0.23648392]
[1744713393677,13.25071,1627.5,1627.0,6.38272392]
[1744713393678,7.1063,1627.5,1627.0,6.38272392]
[1744713393833,14.06804993,1627.5,1627.2,6.14536]
[1744713394162,20.1675333,1627.5,1627.3,0.23766481]
[1744713394369,20.1674433,1627.5,1627.3,0.23766481]
[1744713394523,14.0228733,1627.5,1627.2,6.14552]
[1744713394716,14.0228733,1627.5,1627.4,0.23766481]
[1744713394920,14.0228733,1627.5,1627.1,6.91616]
[1744713395235,6.14552,1627.2,1626.9,0.8237]
[1744713395455,6.14552,1627.2,1626.8,6.14701]
[1744713395752,6.14601,1627.1,1626.7,6.97598]
[1744713395949,6.14601,1627.1,1626.8,6.1469]
[1744713396155,0.04517663,1627.1,1626.7,6.97598]
[1744713396489,12.29295,1627.0,1626.7,6.97598]
[1744713396651,6.14644,1627.0,1626.7,6.97598]
[1744713397053,6.14644,1627.0,1626.7,13.12325]
[1744713397252,1.40228733,1627.4,1626.8,6.14697]
[1744713397465,7.59234396,1627.4,1627.1,6.14576]
[1744713397667,1.44746396,1627.4,1626.8,6.14703]
[1744713397887,6.18995663,1627.4,1627.1,6.14566]
[1744713398674,0.04517663,1627.4,1627.1,6.14566]
[1744713398881,6.758543,1627.6,1627.2,6.14538]
[1744713399036,13.29591,1627.7,1627.4,6.14476]
[1744713399245,13.29591,1627.7,1627.1,0.8319479]
[1744713399246,0.56172957,1627.6,1627.2,6.14542]
[1744713399479,0.56172957,1627.6,1627.4,12.28911]
[1744713399647,0.56172957,1627.6,1627.5,6.14439]
[1744713400177,12.4967,1627.7,1627.4,6.92759]
[1744713400374,12.4967,1627.7,1627.4,6.92754]
[1744713400886,6.14331,1627.8,1627.5,6.14435]
[1744713401188,6.18852663,1627.8,1627.6,0.2167422]
[1744713401387,12.33197663,1627.8,1627.6,0.2167422]
[1744713401547,12.28688,1627.8,1627.6,0.2167422]
[1744713401747,6.14335,1627.8,1627.6,0.2167422]
[1744713401983,6.14335,1627.8,1627.5,6.14425]
[1744713402195,6.14335,1627.8,1627.7,0.2167422]
[1744713402400,6.14335,1627.8,1627.5,6.14425]
[1744713402691,6.14381,1627.7,1627.4,6.92758]
[1744713403250,6.14381,1627.7,1627.4,13.07218]
[1744713403482,6.143,1627.9,1627.6,6.1439]
[1744713403681,54.0735,1628.0,1627.7,6.14336]
[1744713403997,0.8056,1627.7,1627.2,6.14552]
[1744713404289,13.09313,1627.7,1627.4,6.14476]
[1744713404493,6.94934,1627.7,1627.4,6.14476]
[1744713404695,6.94934,1627.7,1627.4,12.28938]
[1744713404847,6.14297,1627.9,1627.5,6.14435]
[1744713405041,11.63181133,1627.9,1627.6,6.14401]
[1744713405286,0.04517663,1627.9,1627.7,12.28708]
[1744713405583,47.931,1628.0,1627.8,6.14294]
[1744713405778,47.931,1628.0,1627.9,6.14288]
[1744713405984,7.1648,1628.2,1627.9,12.28576]
[1744713406277,6.352,1628.2,1628.0,6.14236]
[1744713406484,6.14215,1628.1,1627.8,6.14315]
[1744713406682,6.14215,1628.1,1627.8,12.2863]
[1744713407053,18.63576,1628.2,1627.8,12.2863]
[1744713407386,6.14214,1628.1,1627.8,6.14314]
[1744713407947,12.28458,1628.1,1627.7,18.41709]
[1744713408382,6.14214,1628.1,1627.8,6.14323]
[1744713408586,6.14214,1628.1,1627.7,12.27354]
[1744713408784,6.14251,1628.0,1627.7,12.27348]
[1744713408990,12.28442,1628.1,1627.8,6.14323]
[1744713409388,6.14214,1628.1,1627.7,12.27348]
[1744713409582,6.14222,1628.1,1627.8,6.14307]
[1744713409778,6.14213,1628.1,1627.8,6.14307]
[1744713410089,14.357426,1628.2,1627.9,6.14271]
[1744713410295,6.14225,1628.1,1627.8,6.14314]
[1744713410952,12.28457,1628.1,1627.8,6.14314]
[1744713411291,6.14252,1628.0,1627.7,12.27356]
[1744713411670,8.1922446,1628.1,1627.8,6.14314]
[1744713412093,8.1922446,1628.1,1627.8,6.14313]
[1744713412390,6.352,1628.2,1627.7,12.27335]
[1744713412699,6.352,1628.2,1628.0,12.28474]
[1744713412874,6.352,1628.2,1628.0,6.14237]
[1744713413786,6.352,1628.2,1627.8,6.14318]
[1744713414107,12.49384,1628.2,1627.8,6.14313]
[1744713414399,6.14224,1628.1,1627.8,12.28628]
[1744713415095,6.352,1628.2,1628.0,6.14238]
[1744713415308,6.352,1628.2,1628.1,6.14212]
[1744713415994,7.1777,1628.7,1628.3,6.14137]
[1744713416202,0.8277,1628.9,1628.5,6.14046]
[1744713416385,0.8277,1628.9,1628.7,6.13984]
[1744713416605,10.43226085,1629.0,1628.8,6.13946]
[1744713416808,6.35,1629.0,1628.8,6.13946]
[1744713416998,6.35,1629.0,1628.9,0.20108435]
[1744713417197,6.35,1629.0,1628.8,12.34022895]
[1744713417409,6.35,1629.0,1628.9,6.13911]
[1744713417591,4.51708422,1629.1,1628.9,6.33573671]
[1744713417794,4.51708422,1629.1,1629.0,6.13873]
[1744713418409,4.51708422,1629.1,1629.0,0.19469316]
[1744713418715,4.51708422,1629.1,1628.9,6.1391]
[1744713418915,4.51708422,1629.1,1629.0,6.33342316]
[1744713419288,4.51708422,1629.1,1629.0,0.19469316]
[1744713420341,4.51708422,1629.1,1629.0,6.33342316]
[1744713420817,4.51708422,1629.1,1629.0,8.35896048]
[1744713420818,0.48,1629.1,1629.0,8.35896048]
[1744713421407,0.48,1629.1,1629.0,7.11172316]
[1744713422213,0.48,1629.1,1629.0,0.19469316]
[1744713422417,0.48,1629.1,1629.0,6.33342316]
[1744713423848,0.48,1629.1,1629.0,6.39480323]
[1744713424686,0.48,1629.1,1629.0,6.33342316]
[1744713425540,0.48,1629.1,1629.0,0.19469316]
[1744713426574,0.48,1629.1,1628.8,12.27858]
[1744713426782,0.48,1629.1,1629.0,0.18233533]
[1744713426979,0.48,1629.1,1628.9,6.3051809]
[1744713427141,0.48,1629.1,1628.9,6.13907]
[1744713427342,0.48,1629.1,1629.0,0.1661109]
[1744713427738,0.48,1629.1,1629.0,6.3048409]
[1744713427939,0.48,1629.1,1629.0,8.34352299]
[1744713429298,0.48,1629.1,1629.0,8.40489444]
[1744713429483,0.48,1629.1,1629.0,8.34352299]
[1744713430557,0.48,1629.1,1629.0,0.1661109]
[1744713430801,0.48,1629.1,1629.0,6.3048409]
[1744713432216,0.48,1629.1,1629.0,7.0999409]
[1744713432509,0.48,1629.1,1629.0,7.16131057]
[1744713432879,0.48,1629.1,1629.0,7.0999409]
[1744713433084,0.48,1629.1,1629.0,9.75960274]
[1744713433803,0.55,1629.3,1629.2,6.13798]
[1744713434009,0.55,1629.3,1629.2,15.32923981]
[1744713434319,0.55,1629.3,1629.2,15.4912344]
[1744713438780,0.55,1629.3,1629.2,12.42996459]
[1744713438998,0.55,1629.3,1629.2,14.27159159]
[1744713440003,0.55,1629.3,1629.2,17.3328614]
[1744713442524,0.55,1629.3,1629.2,12.42996459]
[1744713444409,0.55,1629.3,1629.2,6.29198459]
[1744713445596,0.55,1629.3,1629.2,12.42996459]
[1744713447347,0.55,1629.3,1629.2,13.20546459]
[1744713447521,0.55,1629.3,1629.2,16.2667344]
[1744713447728,0.55,1629.3,1629.2,19.12104184]
[1744713451241,0.55,1629.3,1629.2,19.07419644]
[1744713454230,0.55,1629.3,1629.2,15.444389]
[1744713457260,0.55,1629.3,1629.2,12.42996459]
[1744713458962,0.55,1629.3,1629.2,15.444389]
[1744713467936,0.55,1629.3,1629.2,16.217189]
[1744713469142,0.55,1629.3,1629.2,15.444389]
[1744713469951,0.55,1629.3,1629.2,12.42996459]
[1744713470151,0.55,1629.3,1629.2,15.444389]
[1744713470552,0.55,1629.3,1629.2,18.8125609]
[1744713471983,0.55,1629.3,1629.2,18.8125609]
[1744713479070,0.05,1629.4,1629.3,6.1376]
[1744713479390,0.05,1629.4,1629.3,6.29749493]
[1744713481052,0.8066,1630.1,1629.9,6.13509]
[1744713481251,0.8066,1630.1,1630.0,6.13496]
[1744713481449,0.8066,1630.1,1630.0,6.29090841]
[1744713482052,0.8066,1630.1,1630.0,9.30533282]
[1744713482653,0.8066,1630.1,1630.0,10.43844976]
[1744713482964,0.0957014,1630.2,1630.1,6.13459]
[1744713483157,0.0957014,1630.2,1630.1,6.28877555]
[1744713488379,1.4e-06,1630.2,1630.1,12.41876555]
[1744713488574,1.4e-06,1630.2,1630.1,15.41876555]
[1744713488812,1.4e-06,1630.2,1630.1,18.60235224]
[1744713490121,1.4e-06,1630.2,1630.1,15.60235224]
[1744713490424,1.4e-06,1630.2,1630.1,18.61677665]
[1744713497737,1.4e-06,1630.2,1630.1,21.61677665]
[1744713498090,1.4e-06,1630.2,1630.1,22.39847665]
[1744713498293,1.4e-06,1630.2,1630.1,22.94847665]
[1744713499533,0.8164,1630.8,1630.7,6.13233]
[1744713499734,0.8164,1630.8,1630.7,9.14675441]
[1744713499947,0.04517663,1631.1,1631.0,6.1312]
[1744713500104,0.59517663,1631.3,1631.0,6.1312]
[1744713500292,6.72538663,1631.3,1631.0,6.13112]
[1744713500496,0.7986,1631.2,1631.1,0.14386431]
[1744713500709,0.7986,1631.2,1631.1,6.27469431]
[1744713501090,0.7986,1631.2,1631.1,0.14386431]
[1744713502907,0.7986,1631.2,1631.1,6.27469431]
[1744713503106,0.7986,1631.2,1631.1,0.14386431]
[1744713503304,0.7986,1631.2,1631.1,6.27469431]
[1744713503732,0.7986,1631.2,1631.1,0.14386431]
[1744713504340,0.7986,1631.2,1631.1,6.27469431]
[1744713504646,0.55,1631.3,1631.1,6.27453431]
[1744713506044,0.55,1631.3,1631.1,12.40525431]
[1744713506220,0.55,1631.3,1631.2,7.37097543]
[1744713506419,0.55,1631.3,1631.2,0.13413716]
[1744713506608,6.68008,1631.3,1631.0,6.13109]
[1744713506807,6.68008,1631.3,1631.1,0.13405334]
[1744713507146,0.55,1631.3,1631.1,0.13405334]
[1744713507444,0.55,1631.3,1631.1,6.26486334]
[1744713507750,0.55,1631.3,1631.1,7.50445867]
[1744713508046,0.55,1631.3,1631.1,1.37364867]
[1744713508248,0.55,1631.3,1631.1,7.50442867]
[1744713508917,0.55,1631.3,1631.1,7.50434867]
[1744713509561,0.55,1631.3,1631.1,13.63507867]
[1744713509865,0.55,1631.3,1631.1,7.50434867]
[1744713510363,0.55,1631.3,1631.1,1.37364867]
[1744713510666,6.68018,1631.3,1631.1,0.13405334]
[1744713510871,0.55,1631.3,1631.1,0.13405334]
[1744713511159,0.55,1631.3,1631.1,6.26475334]
[1744713511347,0.55,1631.3,1631.1,6.26484334]
[1744713511545,0.55,1631.3,1631.1,6.26478334]
[1744713515278,0.55,1631.3,1631.1,12.39550334]
[1744713515580,0.55,1631.3,1631.1,6.26477334]
[1744713519840,0.55,1631.3,1631.1,0.13405334]
[1744713519841,0.04517663,1631.2,1631.1,0.13405334]
[1744713520083,12.60422663,1631.2,1631.1,0.13405334]
[1744713520405,12.60422663,1631.2,1630.7,6.12999]
[1744713520406,6.89855,1630.8,1630.7,6.12999]
[1744713520561,6.89855,1630.8,1630.4,6.1333]
[1744713520562,6.13235,1630.7,1630.4,6.1333]
[1744713520765,6.17752663,1630.7,1630.4,6.1333]
[1744713521087,6.17752663,1630.7,1630.3,6.13373]
[1744713521088,0.816,1630.5,1630.3,6.13372]
[1744713522139,6.13206,1630.8,1630.5,6.13308]
[1744713522289,6.13278,1630.6,1630.3,7.973472]
[1744713522490,6.13278,1630.6,1630.3,6.13369]
[1744713522733,6.17795663,1630.6,1630.3,6.13369]
[1744713523831,0.7941,1630.5,1630.2,6.12999]
[1744713524029,6.17874663,1630.4,1630.2,6.12999]
[1744713524346,0.7941,1630.5,1630.3,6.13384]
[1744713524623,0.7622,1630.7,1630.5,6.13288]
[1744713524818,0.7622,1630.7,1630.5,12.26585]
[1744713525024,0.7622,1630.7,1630.4,6.13342]
[1744713525219,6.89471,1630.7,1630.4,6.13342]
[1744713525422,6.17803663,1630.6,1630.2,12.26393]
[1744713525643,6.13309,1630.5,1630.2,12.26393]
[1744713525987,12.26638,1630.5,1630.2,12.26393]
[1744713526212,6.97229663,1630.4,1630.2,6.12999]
[1744713526415,0.7934,1630.4,1630.2,6.12999]
[1744713526729,0.7934,1630.4,1630.2,12.26403]
[1744713527453,0.7934,1630.4,1630.2,6.12999]
[1744713527948,6.92698,1630.4,1630.2,6.12999]
[1744713528110,6.13384,1630.3,1630.2,6.12999]
[1744713528312,6.17901663,1630.3,1630.2,6.12999]
[1744713528927,6.96301,1630.1,1629.8,9.13556]
[1744713529256,6.1352,1630.0,1629.7,3.01442441]
[1744713529459,6.1352,1630.0,1629.5,9.91202441]
[1744713529460,6.13564,1629.9,1629.5,9.91202441]
[1744713529662,6.18081663,1629.9,1629.6,3.99120244]
[1744713529954,12.31622663,1629.9,1629.5,16.04882441]
[1744713530115,12.27105,1629.9,1629.5,16.04882441]
[1744713530311,12.27105,1629.9,1629.5,15.28802441]
[1744713530555,6.13552,1629.9,1629.6,6.1363]
[1744713530727,6.18069663,1629.9,1629.6,6.1363]
[1744713531122,12.31634663,1629.9,1629.5,9.15122441]
[1744713531356,0.7707,1629.8,1629.5,15.28792441]
[1744713531562,0.7707,1629.8,1629.5,17.11671685]
[1744713532020,0.7707,1629.8,1629.3,13.02299]
[1744713532021,6.18146663,1629.7,1629.3,6.12999]
[1744713532357,0.7672,1629.6,1629.3,12.26745]
[1744713532514,6.90379,1629.6,1629.3,6.12999]
[1744713532718,13.04052,1629.6,1629.3,6.12999]
[1744713532941,6.18211663,1629.5,1629.3,6.12999]
[1744713533462,0.04517663,1629.5,1629.3,6.12999]
[1744713533760,6.18219663,1629.5,1629.3,6.12999]
[1744713535575,6.4322,1629.6,1629.4,6.13722]
[1744713535722,12.61385663,1629.6,1629.3,14.108047]
[1744713536036,18.70556,1629.6,1629.3,14.108047]
[1744713536360,12.56882,1629.6,1629.3,12.26748]
[1744713536756,6.4322,1629.6,1629.3,6.12999]
[1744713537056,6.4322,1629.6,1629.3,12.2675]
[1744713537057,12.61398663,1629.6,1629.3,12.2675]
[1744713537219,12.56881,1629.6,1629.3,12.2675]
[1744713538061,0.04517663,1629.5,1629.3,6.12999]
[1744713538231,6.18202663,1629.5,1629.3,6.12999]
[1744713538427,6.13722,1629.4,1629.3,6.12999]
[1744713538622,8.01193366,1629.5,1629.3,6.12999]
[1744713538817,1.87508366,1629.5,1629.3,6.12999]
[1744713539116,0.04517663,1629.5,1629.3,6.12999]
[1744713539321,6.18202663,1629.5,1629.3,6.12999]
[1744713539555,0.04517663,1629.5,1629.3,6.12999]
[1744713539865,6.18202663,1629.5,1629.3,6.12999]
[1744713540523,0.04517663,1629.5,1629.4,6.13722]
[1744713540845,12.61412663,1629.6,1629.3,6.12999]
[1744713541038,6.4322,1629.6,1629.3,6.12999]
[1744713541376,6.47737663,1629.6,1629.4,6.1371]
[1744713541979,6.47737663,1629.6,1629.3,12.26748]
[1744713542179,6.47737663,1629.6,1629.3,6.12999]
[1744713542180,6.18217663,1629.5,1629.3,6.12999]
[1744713542371,0.04517663,1629.4,1629.3,6.12999]
[1744713542894,18.70543,1629.6,1629.3,6.12999]
[1744713543098,12.27404,1629.5,1629.3,6.12999]
[1744713543296,0.04517663,1629.4,1629.3,6.12999]
[1744713544899,6.13807,1629.2,1629.0,0.36]
[1744713545050,6.828427,1629.2,1629.0,0.36]
[1744713545389,6.18352663,1629.1,1629.0,0.36]
[1744713545564,6.99252663,1629.1,1629.0,0.36]
[1744713546397,0.809,1629.3,1629.1,6.13802]
[1744713546602,0.04517663,1629.4,1629.3,6.1376]
[1744713546803,9.61818537,1630.1,1629.5,6.13652]
[1744713546804,0.809,1629.7,1629.5,6.13652]
[1744713547008,0.809,1629.9,1629.8,6.13572]
[1744713547314,0.85417663,1630.1,1629.8,6.13564]
[1744713547462,0.85417663,1630.1,1629.8,12.2712]
[1744713548001,0.7698,1630.4,1630.2,6.13395]
[1744713548230,6.90328,1630.4,1630.1,6.13456]
[1744713548374,6.17913663,1630.3,1630.0,6.13491]
[1744713548559,6.17913663,1630.3,1629.9,6.13526]
[1744713548760,12.31323663,1630.3,1629.9,6.13526]
[1744713549210,6.1344,1630.2,1629.9,6.13526]
[1744713549387,0.04517663,1630.1,1629.9,6.13526]
[1744713550307,0.04517663,1630.1,1629.8,12.14997441]
[1744713550620,0.04517663,1630.1,1629.7,6.12999]
[1744713550823,6.13572,1629.8,1629.5,6.1366]
[1744713550977,0.7651,1630.0,1629.5,12.27333]
[1744713550978,6.13541,1629.9,1629.5,12.27333]
[1744713551173,6.94531663,1630.0,1629.7,6.13609]
[1744713551404,0.81027663,1630.0,1629.4,3.81622441]
[1744713551623,6.13588,1629.8,1629.4,11.08201055]
[1744713551792,0.04517663,1629.7,1629.5,6.13676]
[1744713552016,6.18107663,1629.8,1629.5,6.13676]
[1744713553636,6.18107663,1629.8,1629.4,13.28030055]
[1744713553795,0.8156,1629.7,1629.2,12.26772]
[1744713553995,0.04517663,1629.6,1629.3,9.15178441]
[1744713554314,6.4446,1629.9,1629.5,3.01442441]
[1744713554517,0.04517663,1629.8,1629.6,12.27264]
[1744713554715,0.04517663,1629.8,1629.6,6.13617]
[1744713555222,12.57995,1629.9,1629.6,6.13617]
[1744713555747,0.04517663,1629.8,1629.6,6.13617]
[1744713555938,6.18122663,1629.8,1629.4,9.13709]
[1744713556094,6.18122663,1629.8,1629.4,10.35223144]
[1744713556297,6.18122663,1629.8,1629.5,6.13665]
[1744713556543,6.18095663,1629.8,1629.5,12.27338]
[1744713556703,12.31693663,1629.8,1629.4,16.48951144]
[1744713556908,6.13578,1629.8,1629.5,6.13678]
[1744713557125,6.18095663,1629.8,1629.5,6.13678]
[1744713557643,0.04517663,1629.8,1629.6,6.13636]
[1744713557954,0.86077663,1629.9,1629.6,12.27272]
[1744713558159,0.86077663,1629.9,1629.7,6.13609]
[1744713558527,0.86077663,1629.9,1629.6,6.13636]
[1744713558528,6.99614663,1629.9,1629.6,12.27272]
[1744713558726,0.86077663,1629.9,1629.7,6.13589]
[1744713559049,0.04517663,1629.9,1629.8,6.13572]
[1744713559363,0.7841,1630.1,1630.0,6.13496]
[1744713559571,0.04517663,1630.2,1630.0,6.13496]
[1744713562753,6.13281,1630.6,1630.3,6.1337]
[1744713562980,6.13392,1630.3,1630.0,6.1349]
[1744713563124,13.08177,1630.3,1629.9,0.7807]
[1744713563327,6.13424,1630.2,1629.9,6.9159]
[1744713563558,6.13424,1630.2,1629.9,13.05113]
[1744713563767,12.88179,1630.3,1630.0,6.13487]
[1744713565563,6.17946663,1630.2,1629.9,6.13514]
[1744713565858,0.85897663,1630.3,1630.1,6.13428]
[1744713566063,6.99289663,1630.3,1630.0,6.13485]
[1744713566641,6.99289663,1630.3,1630.0,12.2697]
[1744713567165,0.85897663,1630.3,1630.0,12.2697]
[1744713567367,0.85897663,1630.3,1630.1,6.13456]
[1744713567540,6.99286663,1630.3,1630.0,6.13485]
[1744713567741,6.99286663,1630.3,1630.0,12.26969]
[1744713567964,6.99286663,1630.3,1630.0,6.13484]
[1744713568466,6.13438,1630.2,1629.8,15.27123]
[1744713568666,6.13438,1630.2,1629.8,17.29225791]
[1744713568825,12.26877,1630.2,1629.9,6.13526]
[1744713569177,6.13438,1630.2,1629.9,6.13526]
[1744713569972,12.26876,1630.2,1629.9,6.13526]
[1744713570185,6.13438,1630.2,1629.9,6.13526]
[1744713570476,6.13438,1630.2,1629.9,13.08611879]
[1744713570660,13.08174,1630.3,1630.0,6.13494]
[1744713570971,6.13428,1630.2,1629.9,6.95085879]
[1744713571183,6.94771,1630.3,1629.9,6.95085879]
[1744713571333,6.17939663,1630.2,1629.9,13.08607879]
[1744713571532,6.13422,1630.2,1629.9,13.08607879]
[1744713571834,11.76114,1630.5,1630.2,6.13408]
[1744713571835,6.3849,1630.5,1630.2,6.13408]
[1744713572033,5.67317663,1630.5,1630.4,6.13346]
[1744713572265,0.04517663,1630.6,1630.2,6.13421]
[1744713572576,6.92564,1630.3,1630.0,6.13477]
[1744713572736,0.7917,1630.3,1630.0,6.13477]
[1744713572937,0.83687663,1630.5,1630.3,6.13382]
[1744713573133,0.7917,1630.5,1630.3,6.13382]
[1744713573366,0.04517663,1630.6,1630.2,0.7724]
[1744713573569,13.0589,1630.4,1630.0,7.67927988]
[1744713573959,12.2672,1630.4,1630.1,6.13458]
[1744713574156,6.13356,1630.4,1630.1,6.13458]
[1744713574373,6.13356,1630.4,1630.1,6.13448]
[1744713574562,12.26718,1630.4,1630.1,6.13448]
[1744713575269,12.26724,1630.4,1630.1,6.13448]
[1744713575473,6.13384,1630.3,1630.0,13.81441988]
[1744713575635,12.26737,1630.4,1630.1,6.13456]
[1744713576373,0.04517663,1630.5,1630.2,6.1339]
[1744713576585,0.04517663,1630.5,1630.3,6.1338]
[1744713576746,6.1331,1630.5,1630.2,12.26801]
[1744713576937,12.31149663,1630.5,1630.2,6.1339]
[1744713577978,6.13355,1630.4,1630.0,6.90733]
[1744713578153,6.13394,1630.3,1630.0,13.732923]
[1744713578365,6.13355,1630.4,1630.1,6.13448]
[1744713578694,6.1332,1630.5,1630.2,6.13412]
[1744713578901,0.04517663,1630.4,1630.2,6.13409]
[1744713579199,6.17866663,1630.4,1630.1,6.13446]
[1744713579354,6.13349,1630.4,1630.1,13.6421953]
[1744713579557,6.13349,1630.4,1630.1,7.5077053]
[1744713580189,12.31172663,1630.5,1630.1,1.3732453]
[1744713580399,0.04517663,1630.5,1630.3,6.13374]
[1744713580565,0.04517663,1630.5,1630.3,12.26748]
[1744713580771,0.04517663,1630.5,1630.3,6.13374]
[1744713580983,6.17826663,1630.5,1630.3,6.13374]
[1744713581791,6.17826663,1630.5,1630.2,12.26824]
[1744713582114,6.17826663,1630.5,1630.2,12.26823]
[1744713582596,12.31148663,1630.5,1630.2,6.13411]
[1744713582796,6.17826663,1630.5,1630.2,12.2682]
[1744713583099,12.31158663,1630.5,1630.2,6.13409]
[1744713583460,0.04517663,1630.5,1630.3,6.13383]
[1744713583663,6.92452,1630.6,1630.3,6.13383]
[1744713583986,6.96969663,1630.6,1630.3,6.13383]
[1744713584294,6.96969663,1630.6,1630.3,12.26756]
[1744713584502,6.96969663,1630.6,1630.3,12.26746]
[1744713584705,6.96969663,1630.6,1630.3,6.13373]
[1744713584904,13.10261663,1630.6,1630.3,6.13373]
[1744713585105,13.05744,1630.6,1630.3,6.13373]
[1744713585288,6.13438,1630.2,1629.9,11.77024]
[1744713585492,6.17910663,1630.3,1630.0,6.13478]
[1744713585665,0.04517663,1630.3,1630.1,6.13458]
[1744713585866,6.17920663,1630.3,1630.0,6.13478]
[1744713586065,6.94245663,1630.4,1630.1,6.1343]
[1744713586270,6.13312,1630.5,1630.1,6.93948]
[1744713586479,6.13352,1630.4,1630.1,6.93948]
[1744713586683,12.26728,1630.4,1630.1,6.13448]
[1744713586911,12.31245663,1630.4,1630.1,6.13448]
[1744713587812,6.17914663,1630.3,1630.0,13.79788579]
[1744713588170,0.04517663,1630.3,1630.1,6.13449]
[1744713588503,12.31233663,1630.4,1630.1,6.90075658]
[1744713588682,12.26716,1630.4,1630.1,6.90075658]
[1744713588883,6.13354,1630.4,1630.1,6.90075658]
[1744713589504,6.17838663,1630.5,1630.2,6.13412]
[1744713589706,12.31160663,1630.5,1630.2,6.13412]
[1744713591185,6.17838663,1630.5,1630.2,12.26822]
[1744713591976,6.17838663,1630.5,1630.2,13.57166866]
[1744713592176,6.17838663,1630.5,1630.2,13.57164866]